lending/lending_fUSD_20251022
["ID","MTS","AMOUNT","RATE_DAILY","PERIOD"]
[392047379,1761120025786,183.91648037,0.00034314,120]
[392047380,1761120025952,1529.75,0.00034314,120]
[392047381,1761120026212,1529.75,0.00034314,120]
[392047382,1761120026456,1529.94323385,0.00034314,120]
[392047383,1761120027307,456.71509451,0.00034314,120]
[392047384,1761120027683,511.09365496,0.00034314,120]
[392047385,1761120027882,500.0,0.00034314,120]
[392047386,1761120028151,500.0,0.00034314,120]
[392047387,1761120028217,509.88581629,0.00034314,120]
[392047388,1761120028428,500.0,0.00034314,120]
[392047389,1761120028800,500.0,0.00034314,120]
[392047390,1761120028947,500.0,0.00034314,120]
[392047391,1761120029156,552.91218146,0.00034314,120]
[392047392,1761120029214,500.0,0.00034314,120]
[392047393,1761120029452,500.0,0.00034314,120]
[392047394,1761120029666,500.0,0.00034314,120]
[392047395,1761120029914,500.0,0.00034314,120]
[392047396,1761120030049,500.0,0.00034314,120]
[392047397,1761120030104,504.12947822,0.00034314,120]
[392047398,1761120030155,500.0,0.00034314,120]
[392047399,1761120030734,500.0,0.00034314,120]
[392047400,1761120030996,500.0,0.00034314,120]
[392047401,1761120031092,500.0,0.00034314,120]
[392047402,1761120031278,500.0,0.00034314,120]
[392047403,1761120031529,500.0,0.00034314,120]
[392047404,1761120031752,500.0,0.00034314,120]
[392047405,1761120031960,680.49,0.00034314,120]
[392047406,1761120032014,500.0,0.00034314,120]
[392047407,1761120032074,510.73009517,0.00034314,120]
[392047408,1761120032127,518.59135662,0.00034314,120]
[392047409,1761120032189,680.49,0.00034314,120]
[392047410,1761120032279,587.70688208,0.00034314,120]
[392047411,1761120032449,680.49,0.00034314,120]
[392047412,1761120032690,680.49,0.00034314,120]
[392047413,1761120032938,680.49,0.00034314,120]
[392047414,1761120033028,546.60600033,0.00034314,120]
[392047415,1761120033189,680.49,0.00034314,120]
[392047416,1761120033463,680.49,0.00034314,120]
[392047417,1761120033750,680.49,0.00034314,120]
[392047418,1761120033949,502.90822126,0.00034314,120]
[392047419,1761120034006,680.49,0.00034314,120]
[392047420,1761120034065,500.0,0.00034314,120]
[392047421,1761120034198,680.49,0.00034314,120]
[392047422,1761120034257,500.0,0.00034314,120]
[392047423,1761120034438,680.49,0.00034314,120]
[392047424,1761120034498,500.0,0.00034314,120]
[392047425,1761120034716,680.49,0.00034314,120]
[392047426,1761120034772,500.0,0.00034314,120]
[392047427,1761120034950,680.49,0.00034314,120]
[392047428,1761120035010,500.0,0.00034314,120]
[392047429,1761120035067,500.0,0.00034314,120]
[392047430,1761120035215,680.49,0.00034314,120]
[392047431,1761120035273,500.0,0.00034314,120]
[392047432,1761120035460,500.0,0.00034314,120]
[392047433,1761120035516,680.49,0.00034314,120]
[392047434,1761120035691,680.49,0.00034314,120]
[392047435,1761120035747,500.0,0.00034314,120]
[392047436,1761120035839,502.12953968,0.00034314,120]
[392047437,1761120035929,680.49,0.00034314,120]
[392047438,1761120035985,500.0,0.00034314,120]
[392047439,1761120036158,680.49,0.00034314,120]
[392047440,1761120036224,500.0,0.00034314,120]
[392047441,1761120036397,680.49,0.00034314,120]
[392047442,1761120036465,463.73449916,0.00034314,120]
[392047443,1761120036735,680.49,0.00034314,120]
[392047444,1761120036873,500.0,0.00034314,120]
[392047445,1761120036953,680.49,0.00034314,120]
[392047446,1761120037189,680.49,0.00034314,120]
[392047447,1761120037437,680.49,0.00034314,120]
[392047448,1761120037625,509.6423515,0.00034314,120]
[392047449,1761120037897,680.58760788,0.00034314,120]
[392047450,1761120038120,500.0,0.00034314,120]
[392047451,1761120038384,500.0,0.00034314,120]
[392047452,1761120038656,500.0,0.00034314,120]
[392047453,1761120038767,500.0,0.00034314,120]
[392047454,1761120038920,500.0,0.00034314,120]
[392047455,1761120038979,500.0,0.00034314,120]
[392047456,1761120039036,210.74270281,0.00034314,120]
[392047457,1761120039091,390.67,0.00034314,120]
[392047458,1761120039149,500.0,0.00034314,120]
[392047459,1761120039395,500.0,0.00034314,120]
[392047460,1761120039469,510.17871822,0.00034314,120]
[392047461,1761120039555,503.12493708,0.00034314,120]
[392047462,1761120039648,500.0,0.00034314,120]
[392047463,1761120039887,500.0,0.00034314,120]
[392047464,1761120040082,500.0,0.00034314,120]
[392047465,1761120040142,529.00506352,0.00034314,120]
[392047466,1761120040331,500.0,0.00034314,120]
[392047467,1761120040571,500.0,0.00034314,120]
[392047468,1761120040811,500.0,0.00034314,120]
[392047469,1761120040885,504.22777859,0.00034314,120]
[392047470,1761120040946,540.39577869,0.00034314,120]
[392047471,1761120041045,500.0,0.00034314,120]
[392047472,1761120041263,513.63349434,0.00034314,120]
[392047473,1761120041335,500.0,0.00034314,120]
[392047474,1761120041460,503.93446775,0.00034314,120]
[392047475,1761120041601,500.0,0.00034314,120]
[392047476,1761120041841,500.0,0.00034314,120]
[392047477,1761120042073,500.0,0.00034314,120]
[392047478,1761120042315,500.0,0.00034314,120]
[392047479,1761120042544,500.0,0.00034314,120]
[392047480,1761120042786,500.0,0.00034314,120]
[392047481,1761120042962,511.56039455,0.00034314,120]
[392047482,1761120043047,500.0,0.00034314,120]
[392047483,1761120043106,512.75107592,0.00034314,120]
[392047484,1761120043249,500.0,0.00034314,120]
[392047485,1761120043319,500.0,0.00034314,120]
[392047486,1761120043498,500.0,0.00034314,120]
[392047487,1761120043734,286.79319293,0.00034314,120]
[392047488,1761120045190,506.16146398,0.00034314,120]
[392047489,1761120045256,510.35460344,0.00034314,120]
[392047490,1761120046028,500.0,0.00034314,120]
[392047491,1761120046270,500.0,0.00034314,120]
[392047492,1761120046501,500.0,0.00034314,120]
[392047493,1761120046730,500.0,0.00034314,120]
[392047494,1761120046976,500.0,0.00034314,120]
[392047495,1761120047075,501.63097017,0.00034314,120]
[392047496,1761120047138,500.0,0.00034314,120]
[392047497,1761120047209,545.64283092,0.00034314,120]
[392047498,1761120048090,542.2704203,0.00034314,120]
[392047499,1761120048587,504.74009552,0.00034314,120]
[392047500,1761120049097,528.24975002,0.00034314,120]
[392047501,1761120049149,501.97228835,0.00034314,120]
[392047502,1761120049991,500.0,0.00034314,120]
[392047503,1761120050368,509.07167753,0.00034314,120]
[392047504,1761120050550,500.0,0.00034314,120]
[392047505,1761120050798,602.48775625,0.00034314,120]
[392047506,1761120050868,510.05958458,0.00034314,120]
[392047507,1761120051068,501.95996661,0.00034314,120]
[392047508,1761120051123,639.77866193,0.00034314,120]
[392047509,1761120051177,500.0,0.00034314,120]
[392047510,1761120051384,500.0,0.00034314,120]
[392047511,1761120051639,500.0,0.00034314,120]
[392047512,1761120051880,500.0,0.00034314,120]
[392047513,1761120052119,500.0,0.00034314,120]
[392047514,1761120052731,500.0,0.00034314,120]
[392047515,1761120052974,500.0,0.00034314,120]
[392047516,1761120053036,502.84421814,0.00034314,120]
[392047517,1761120053166,502.12156821,0.00034314,120]
[392047518,1761120053250,500.0,0.00034314,120]
[392047519,1761120053614,516.47370051,0.00034314,120]
[392047520,1761120053669,637.57047397,0.00034314,120]
[392047521,1761120053723,545.62901345,0.00034314,120]
[392047522,1761120054733,501.70250831,0.00034314,120]
[392047523,1761120055009,503.07825965,0.00034314,120]
[392047524,1761120055218,526.41912988,0.00034314,120]
[392047525,1761120055790,501.3031975,0.00034314,120]
[392047526,1761120056108,510.04607237,0.00034314,120]
[392047527,1761120056837,500.0,0.00034314,120]
[392047528,1761120057670,767.43,0.00034314,120]
[392047529,1761120057900,767.43,0.00034314,120]
[392047530,1761120058142,767.43,0.00034314,120]
[392047531,1761120058267,521.48788849,0.00034314,120]
[392047532,1761120058375,767.43,0.00034314,120]
[392047533,1761120058614,767.43,0.00034314,120]
[392047534,1761120058751,521.58955088,0.00034314,120]
[392047535,1761120058866,767.43,0.00034314,120]
[392047536,1761120059235,767.43,0.00034314,120]
[392047537,1761120059373,767.43,0.00034314,120]
[392047538,1761120059461,503.9681179,0.00034314,120]
[392047539,1761120059616,767.43,0.00034314,120]
[392047540,1761120059872,767.43,0.00034314,120]
[392047541,1761120059927,503.21872641,0.00034314,120]
[392047542,1761120060115,767.43,0.00034314,120]
[392047543,1761120060172,505.71841019,0.00034314,120]
[392047544,1761120060401,767.43,0.00034314,120]
[392047545,1761120060554,500.0,0.00034314,120]
[392047546,1761120060644,767.43,0.00034314,120]
[392047547,1761120060913,767.43,0.00034314,120]
[392047548,1761120060975,500.0,0.00034314,120]
[392047549,1761120061150,767.43,0.00034314,120]
[392047550,1761120061399,767.43,0.00034314,120]
[392047551,1761120061693,767.43,0.00034314,120]
[392047552,1761120061890,767.43,0.00034314,120]
[392047553,1761120062062,500.0,0.00034314,120]
[392047554,1761120062159,767.43,0.00034314,120]
[392047555,1761120062511,502.70003921,0.00034314,120]
[392047556,1761120062585,767.43,0.00034314,120]
[392047557,1761120062806,767.43,0.00034314,120]
[392047558,1761120062899,528.80169041,0.00034314,120]
[392047559,1761120062957,500.0,0.00034314,120]
[392047560,1761120063054,767.43,0.00034314,120]
[392047561,1761120063430,500.0,0.00034314,120]
[392047562,1761120063494,767.43,0.00034314,120]
[392047563,1761120063556,280.89467902,0.00034314,120]
[392047564,1761120063617,767.50010249,0.00034314,120]
[392047565,1761120063678,503.75634328,0.00034314,120]
[392047566,1761120064458,500.0,0.00034314,120]
[392047567,1761120065719,500.0,0.00034314,120]
[392047568,1761120065776,500.0,0.00034314,120]
[392047569,1761120065961,153.56620149,0.00034314,120]
[392047570,1761120066616,503.01710578,0.00034314,120]
[392047571,1761120067277,513.25100542,0.00034314,120]
[392047572,1761120067489,500.0,0.00034314,120]
[392047573,1761120068007,500.0,0.00034314,120]
[392047574,1761120068249,500.0,0.00034314,120]
[392047575,1761120068526,301.92,0.00034314,120]
[392047576,1761120068690,501.10811488,0.00034314,120]
[392047577,1761120069233,500.0,0.00034314,120]
[392047578,1761120069496,501.88475987,0.00034314,120]
[392047579,1761120069637,500.0,0.00034314,60]
[392047580,1761120069708,500.0,0.00034314,120]
[392047581,1761120069879,500.0,0.00034314,60]
[392047582,1761120070108,500.0,0.00034314,60]
[392047583,1761120070373,500.0,0.00034314,60]
[392047584,1761120070643,500.0,0.00034314,60]
[392047585,1761120070881,500.0,0.00034314,60]
[392047586,1761120071104,500.0,0.00034314,120]
[392047587,1761120071168,500.0,0.00034314,60]
[392047588,1761120071423,500.0,0.00034314,60]
[392047589,1761120071661,335.30948356,0.00034314,60]
[392047590,1761120072375,500.0,0.00034314,120]
[392047591,1761120072435,500.0,0.00034314,120]
[392047592,1761120073005,514.17189411,0.00034314,120]
[392047593,1761120073061,500.90866317,0.00034314,120]
[392047594,1761120073339,500.0,0.00034314,120]
[392047595,1761120073597,500.0,0.00034314,120]
[392047596,1761120073844,370.95419048,0.00034314,120]
[392047597,1761120074289,500.0,0.00034314,120]
[392047598,1761120074536,500.0,0.00034314,120]
[392047599,1761120074786,203.43,0.00034314,120]
[392047600,1761120075654,500.0,0.00034314,120]
[392047601,1761120075879,500.0,0.00034314,120]
[392047602,1761120076125,500.0,0.00034314,120]
[392047603,1761120076369,575.26900561,0.00034314,120]
[392047604,1761120076654,512.88531234,0.00034314,120]
[392047605,1761120076717,509.94159169,0.00034314,120]
[392047606,1761120076776,504.61057693,0.00034314,120]
[392047607,1761120077757,507.30692384,0.00034314,120]
[392047608,1761120078376,500.0,0.00034314,120]
[392047609,1761120078613,614.58010305,0.00034314,120]
[392047610,1761120079049,500.0,0.00034314,120]
[392047611,1761120079117,505.89,0.00034314,120]
[392047612,1761120079881,503.83499522,0.00034314,120]
[392047613,1761120080273,500.0,0.00034314,120]
[392047614,1761120080447,500.0,0.00034314,120]
[392047615,1761120080502,540.25376118,0.00034314,120]
[392047616,1761120080556,272.51,0.00034314,120]
[392047617,1761120080609,522.11307165,0.00034314,120]
[392047618,1761120080681,243.12978214,0.00034314,120]
[392047619,1761120080737,510.58531513,0.00034314,120]
[392047620,1761120080981,501.61404296,0.00034314,120]
[392047621,1761120081623,500.0,0.00034314,120]
[392047622,1761120082418,505.25913195,0.00034314,120]
[392047623,1761120082483,500.0,0.00034314,120]
[392047624,1761120082890,500.0,0.00034314,120]
[392047625,1761120082948,508.45750766,0.00034314,120]
[392047626,1761120083673,504.2542875,0.00034314,120]
[392047627,1761120084054,500.0,0.00034314,120]
[392047628,1761120084851,500.0,0.00034314,120]
[392047629,1761120084918,516.18661238,0.00034314,120]
[392047630,1761120085022,506.75408006,0.00034314,120]
[392047631,1761120085246,507.39764129,0.00034314,120]
[392047632,1761120085511,502.61506345,0.00034314,120]
[392047633,1761120085946,500.0,0.00034314,120]
[392047634,1761120086480,500.0,0.00034314,120]
[392047635,1761120086536,398.03571757,0.00034314,120]
[392047636,1761120086862,529.6903537,0.00034314,120]
[392047637,1761120086923,500.0,0.00034314,120]
[392047638,1761120087820,500.0,0.00034314,120]
[392047639,1761120088245,502.97909191,0.00034314,120]
[392047640,1761120088303,500.0,0.00034314,120]
[392047641,1761120090402,518.55131982,0.00034314,120]
[392047642,1761120090465,529.67374856,0.00034314,120]
[392047643,1761120091798,500.0,0.00034314,120]
[392047644,1761120093146,272.23402845,0.00034314,120]
[392047645,1761120094836,500.0,0.00034314,120]
[392047646,1761120095073,163.30685073,0.00034314,120]
[392047647,1761120095131,500.0,0.00034314,120]
[392047648,1761120095190,525.62555034,0.00034314,120]
[392047649,1761120095352,500.0,0.00034314,120]
[392047650,1761120095686,500.0,0.00034314,120]
[392047651,1761120097519,362.80774297,0.00034314,120]
[392047652,1761120098933,500.0,0.00034314,120]
[392047653,1761120099910,500.0,0.00034314,120]
[392047654,1761120099991,500.0,0.00034314,120]
[392047655,1761120100352,500.0,0.00034314,120]
[392047657,1761120100629,500.0,0.00034314,120]
[392047658,1761120100711,506.70772373,0.00034314,120]
[392047660,1761120100853,500.83248077,0.00034314,60]
[392047661,1761120100921,500.0,0.00034314,120]
[392047662,1761120101111,500.0,0.00034314,120]
[392047663,1761120101368,165.89030765,0.00034314,120]
[392047664,1761120102766,403.6819149,0.00034314,120]
[392047665,1761120103142,500.0,0.00034314,120]
[392047666,1761120103340,539.29062905,0.00034314,120]
[392047667,1761120103768,500.0,0.00034314,120]
[392047668,1761120104367,575.63702773,0.00034314,120]
[392047669,1761120104433,504.93018944,0.00034314,120]
[392047670,1761120104498,509.93822975,0.00034314,120]
[392047671,1761120104834,507.33431278,0.00034314,120]
[392047672,1761120105149,499.58870098,0.00034314,120]
[392047673,1761120106322,511.15993329,0.00034314,120]
[392047674,1761120106616,505.30566227,0.00034314,120]
[392047675,1761120106840,478.39211956,0.00034314,120]
[392047676,1761120107474,507.79481713,0.00034314,120]
[392047677,1761120107722,500.0,0.00034314,120]
[392047678,1761120108306,512.76701313,0.00034314,120]
[392047679,1761120108429,508.63623957,0.00034314,120]
[392047680,1761120108548,501.35264484,0.00034314,120]
[392047681,1761120109312,500.0,0.00034314,120]
[392047682,1761120109567,500.0,0.00034314,120]
[392047683,1761120109814,500.0,0.00034314,120]
[392047684,1761120110062,157.72713957,0.00034314,120]
[392047685,1761120110144,507.87146882,0.00034314,120]
[392047686,1761120110799,509.23204148,0.00034314,120]
[392047687,1761120111020,610.73194131,0.00034314,120]
[392047688,1761120111474,553.52308014,0.00034314,120]
[392047689,1761120112121,500.0,0.00034314,120]
[392047690,1761120112247,536.46471441,0.00034314,120]
[392047691,1761120112464,500.0,0.00034314,120]
[392047692,1761120113607,314.08867042,0.00034314,120]
[392047693,1761120113902,501.46961751,0.00034314,120]
[392047694,1761120114499,500.0,0.00034314,120]
[392047695,1761120114993,500.0,0.00034314,120]
[392047696,1761120115214,500.0,0.00034314,120]
[392047697,1761120115277,500.0,0.00034314,120]
[392047698,1761120115619,515.65637164,0.00034314,120]
[392047699,1761120115683,552.68234819,0.00034314,120]
[392047700,1761120115747,500.0,0.00034314,120]
[392047701,1761120115808,500.0,0.00034314,120]
[392047702,1761120115862,500.0,0.00034314,120]
[392047703,1761120115965,500.0,0.00034314,120]
[392047704,1761120116220,500.0,0.00034314,120]
[392047705,1761120116275,500.0,0.00034314,120]
[392047706,1761120116389,500.0,0.00034314,120]
[392047707,1761120116471,533.15084908,0.00034314,120]
[392047708,1761120116659,500.0,0.00034314,120]
[392047709,1761120116921,500.0,0.00034314,120]
[392047710,1761120117036,513.01527982,0.00034314,120]
[392047711,1761120117165,500.0,0.00034314,120]
[392047712,1761120117229,500.0,0.00034314,120]
[392047713,1761120117399,500.0,0.00034314,120]
[392047714,1761120117635,500.0,0.00034314,120]
[392047715,1761120117692,500.0,0.00034314,120]
[392047716,1761120117878,248.98,0.00034314,120]
[392047717,1761120117932,537.02441556,0.00034314,120]
[392047718,1761120119218,500.0,0.00034314,120]
[392047719,1761120119480,500.0,0.00034314,120]
[392047720,1761120119608,519.35572878,0.00034314,120]
[392047721,1761120119664,525.70818251,0.00034314,120]
[392047722,1761120119719,269.9882696,0.00034314,120]
[392047723,1761120119775,851.21,0.00034314,120]
[392047724,1761120120019,851.21,0.00034314,120]
[392047725,1761120120256,851.21,0.00034314,120]
[392047726,1761120120458,505.42602601,0.00034314,120]
[392047727,1761120120516,851.21,0.00034314,120]
[392047728,1761120120966,851.21,0.00034314,120]
[392047729,1761120121135,851.21,0.00034314,120]
[392047730,1761120121380,851.21,0.00034314,120]
[392047731,1761120121437,500.0,0.00034314,120]
[392047732,1761120121624,851.21,0.00034314,120]
[392047733,1761120121730,507.84907346,0.00034314,120]
[392047734,1761120121859,851.21,0.00034314,120]
[392047735,1761120122131,851.21,0.00034314,120]
[392047736,1761120122296,502.4420414,0.00034314,120]
[392047737,1761120122363,851.21,0.00034314,120]
[392047738,1761120122445,500.0,0.00034314,120]
[392047739,1761120122632,851.21,0.00034314,120]
[392047740,1761120122883,851.21,0.00034314,120]
[392047741,1761120123126,851.21,0.00034314,120]
[392047742,1761120123383,851.21,0.00034314,120]
[392047743,1761120123644,851.21,0.00034314,120]
[392047744,1761120123701,524.28301639,0.00034314,120]
[392047745,1761120123881,851.21,0.00034314,120]
[392047746,1761120124124,851.21,0.00034314,120]
[392047747,1761120124181,503.9131997,0.00034314,120]
[392047748,1761120124236,502.69554006,0.00034314,120]
[392047749,1761120124375,851.21,0.00034314,120]
[392047750,1761120124635,851.21,0.00034314,120]
[392047751,1761120124689,509.03478834,0.00034314,120]
[392047752,1761120124744,500.0,0.00034314,120]
[392047753,1761120124873,851.21,0.00034314,120]
[392047754,1761120124980,500.0,0.00034314,120]
[392047755,1761120125054,508.72601981,0.00034314,120]
[392047756,1761120125116,851.21,0.00034314,120]
[392047757,1761120125206,207.49504239,0.00034314,120]
[392047758,1761120125366,851.21,0.00034314,120]
[392047759,1761120125609,851.41350816,0.00034314,120]
[392047760,1761120125845,505.99505646,0.00034314,120]
[392047761,1761120125946,506.94753795,0.00034314,120]
[392047762,1761120126546,500.0,0.00034314,120]
[392047763,1761120127130,530.55799366,0.00034314,120]
[392047764,1761120127194,560.31136898,0.00034314,120]
[392047765,1761120127701,500.0,0.00034314,120]
[392047766,1761120127933,500.0,0.00034314,120]
[392047767,1761120128107,506.30106765,0.00034314,120]
[392047768,1761120128187,512.29642503,0.00034314,120]
[392047769,1761120129044,533.67708191,0.00034314,120]
[392047770,1761120130191,507.27109088,0.00034314,120]
[392047771,1761120131145,500.0,0.00034314,120]
[392047772,1761120131949,500.0,0.00034314,120]
[392047773,1761120132189,500.0,0.00034314,120]
[392047774,1761120132439,500.0,0.00034314,120]
[392047775,1761120132687,168.40644509,0.00034314,120]
[392047776,1761120133768,500.0,0.00034314,120]
[392047777,1761120134019,500.0,0.00034314,120]
[392047778,1761120134288,500.0,0.00034314,120]
[392047779,1761120134519,500.0,0.00034314,120]
[392047780,1761120134621,503.20369278,0.00034314,120]
[392047781,1761120134749,605.76429444,0.00034314,120]
[392047782,1761120134977,509.75916866,0.00034314,120]
[392047783,1761120135414,500.45506342,0.00034314,120]
[392047784,1761120135707,500.0,0.00034314,120]
[392047785,1761120136369,650.93,0.00034314,120]
[392047786,1761120136619,650.93,0.00034314,120]
[392047787,1761120136858,650.93,0.00034314,120]
[392047788,1761120136970,536.69185579,0.00034314,120]
[392047789,1761120137118,650.93,0.00034314,120]
[392047790,1761120137345,650.93,0.00034314,120]
[392047791,1761120137414,531.77356131,0.00034314,120]
[392047792,1761120137588,650.93,0.00034314,120]
[392047793,1761120137817,650.93,0.00034314,120]
[392047794,1761120138082,650.93,0.00034314,120]
[392047795,1761120138313,650.93,0.00034314,120]
[392047796,1761120138587,650.93,0.00034314,120]
[392047797,1761120138816,650.93,0.00034314,120]
[392047798,1761120138869,634.10302962,0.00034314,120]
[392047799,1761120139084,650.93,0.00034314,120]
[392047800,1761120139159,513.52783775,0.00034314,120]
[392047801,1761120139322,650.93,0.00034314,120]
[392047802,1761120139596,650.93,0.00034314,120]
[392047803,1761120139821,650.93,0.00034314,120]
[392047804,1761120140005,500.0,0.00034314,120]
[392047805,1761120140059,650.93,0.00034314,120]
[392047806,1761120140298,650.93,0.00034314,120]
[392047807,1761120140530,650.93,0.00034314,120]
[392047808,1761120140713,500.0,0.00034314,120]
[392047809,1761120140771,541.07350245,0.00034314,120]
[392047810,1761120141123,650.93,0.00034314,120]
[392047811,1761120141453,650.93,0.00034314,120]
[392047812,1761120141693,650.93,0.00034314,120]
[392047813,1761120141932,650.93,0.00034314,120]
[392047814,1761120142235,650.93,0.00034314,120]
[392047815,1761120142294,1687.59,0.00034314,120]
[392047816,1761120142490,651.11,0.00034314,120]
[392047817,1761120142547,1687.59,0.00034314,120]
[392047818,1761120142783,1687.59,0.00034314,120]
[392047819,1761120142979,522.64445716,0.00034314,120]
[392047820,1761120143035,1687.59,0.00034314,120]
[392047821,1761120143095,500.0,0.00034314,120]
[392047822,1761120143329,1687.59,0.00034314,120]
[392047823,1761120143396,500.0,0.00034314,120]
[392047824,1761120143586,1687.59,0.00034314,120]
[392047825,1761120143647,500.0,0.00034314,120]
[392047826,1761120143707,500.0,0.00034314,120]
[392047827,1761120143836,500.0,0.00034314,120]
[392047828,1761120144007,1687.59,0.00034314,120]
[392047829,1761120144066,500.0,0.00034314,120]
[392047830,1761120144253,504.91638734,0.00034314,120]
[392047831,1761120144312,1687.59,0.00034314,120]
[392047832,1761120144373,500.0,0.00034314,120]
[392047833,1761120144434,500.0,0.00034314,120]
[392047834,1761120144550,500.0,0.00034314,120]
[392047835,1761120144759,1687.59,0.00034314,120]
[392047836,1761120144820,500.0,0.00034314,120]
[392047837,1761120144876,509.42196629,0.00034314,120]
[392047838,1761120145030,1687.59,0.00034314,120]
[392047839,1761120145088,337.61165484,0.00034314,120]
[392047840,1761120145629,1687.59,0.00034314,120]
[392047841,1761120146119,1687.59,0.00034314,120]
[392047842,1761120146178,500.94308516,0.00034314,120]
[392047843,1761120146239,1687.59,0.00034314,120]
[392047844,1761120146457,1687.59,0.00034314,120]
[392047845,1761120146547,515.55478573,0.00034314,120]
[392047846,1761120146692,1687.59,0.00034314,120]
[392047847,1761120146747,500.0,0.00034314,120]
[392047848,1761120146933,1687.59,0.00034314,120]
[392047849,1761120147196,1687.59,0.00034314,120]
[392047850,1761120147471,1687.59,0.00034314,120]
[392047851,1761120147740,1687.59,0.00034314,120]
[392047852,1761120147962,508.19579653,0.00034314,120]
[392047853,1761120148022,1687.59,0.00034314,120]
[392047854,1761120148229,1687.59,0.00034314,120]
[392047855,1761120148458,1687.59,0.00034314,120]
[392047856,1761120148688,1687.59,0.00034314,120]
[392047857,1761120148745,500.0,0.00034314,120]
[392047858,1761120148801,500.0,0.00034314,120]
[392047859,1761120148857,500.0,0.00034314,120]
[392047860,1761120148941,1687.72154074,0.00034314,120]
[392047861,1761120149866,507.56,0.00034314,120]
[392047862,1761120150267,500.0,0.00034314,120]
[392047863,1761120150468,522.68812279,0.00034314,120]
[392047864,1761120150609,500.0,0.00034314,120]
[392047865,1761120150840,303.32,0.00034314,120]
[392047866,1761120151225,500.51779755,0.00034314,120]
[392047867,1761120151658,502.74496846,0.00034314,120]
[392047868,1761120152214,500.0,0.00034314,120]
[392047869,1761120152302,500.0,0.00034314,120]
[392047870,1761120152403,500.0,0.00034314,120]
[392047871,1761120152592,500.0,0.00034314,120]
[392047872,1761120152651,500.0,0.00034314,120]
[392047873,1761120152706,196.91748504,0.00034314,120]
[392047874,1761120152976,500.80776821,0.00034314,120]
[392047875,1761120153457,501.4931879,0.00034314,100]
[392047876,1761120154065,559.55462596,0.00034314,120]
[392047877,1761120154387,500.0,0.00034314,120]
[392047878,1761120154568,523.57354214,0.00034314,120]
[392047879,1761120156299,501.8737996,0.00034314,120]
[392047880,1761120157429,694.75,0.00034314,120]